[Event "11th Festival Palmanova-B 2022"]
[Site "Strassoldo"]
[Date "2022.12.10"]
[Round "5.2"]
[White "Predan, Luca"]
[Black "Haselsberger, Armin"]
[Result "1-0"]
[ECO "A21"]
[WhiteElo "1750"]
[BlackElo "1671"]
[Annotator "NA RC COMBH"]
[PlyCount "53"]
[EventDate "2022.12.08"]
[EventType "swiss"]
[EventCountry "ITA"]
[SourceTitle "playchess.com"]
[Source "ChessBase"]
[SourceQuality "1"]
[TimeControl "5400+30"]

1. c4 {[%emt 0:00:02]} e5 {[%emt 0:00:40]} 2. Nc3 {[%emt 0:00:11]} Bb4 {[%emt 0:00:31]} 3. Nd5 {[%emt 0:00:27]} Bc5 {[%emt 0:00:45]} 4. e3 {[%emt 0:00:31]} Nf6 {[%emt 0:01:22]} 5. Nxf6+ {[%emt 0:12:13]} Qxf6 {[%emt 0:00:02]} 6. d3 {[%emt 0:00:21]} c6 {[%emt 0:02:23]} 7. a3 {[%emt 0:03:45]} a5 {[%emt 0:01:46]} 8. Bd2 {[%emt 0:01:19]} O-O {[%emt 0:08:01]} 9. b4 {[%emt 0:07:01]} axb4 {[%emt 0:00:16]} 10. axb4 {[%emt 0:00:05]} Rxa1 {[%emt 0:00:26]} 11. Qxa1 {[%emt 0:00:05]} Bd6 {[%emt 0:01:04]} 12. c5 {[%emt 0:00:26]} Bc7 {[%emt 0:00:08]} 13. Bc3 {[%emt 0:01:42]} Qe7 {[%emt 0:04:03]} 14. Nf3 {[%emt 0:09:59]} f6 {[%emt 0:01:24]} 15. d4 {[%emt 0:01:46]} Re8 {[%emt 0:01:21]} 16. Bc4+ {[%emt 0:00:48]} Kh8 {[%emt 0:01:01]} 17. dxe5 {[%emt 0:03:48]} fxe5 {[%emt 0:02:04]} 18. h4 {[%emt 0:00:36]} h6 {[%emt 0:12:57]} 19. Ng5 {[%emt 0:00:45]} g6 {[%emt 0:01:53]} 20. Nf7+ {[%emt 0:16:33]} Kg7 {[%emt 0:07:26]} 21. f4 {[%emt 0:03:16]} d5 {[%emt 0:03:11]} 22. cxd6 {[%emt 0:00:24]} Bxd6 {[%emt 0:00:03]} 23. Nxd6 {[%emt 0:00:40]} Qxd6 {[%emt 0:00:02]} 24. Bxe5+ {[%emt 0:00:09]} Rxe5 {[%emt 0:00:12]} 25. Qxe5+ {[%emt 0:00:15]} Qxe5 {[%emt 0:00:16]} 26. fxe5 {[%emt 0:00:04]} Nd7 {[%emt 0:01:08]} 27. Be6 {[%emt 0:00:10]} 1-0

[Event "11th Festival Palmanova-B 2022"]
[Site "Strassoldo"]
[Date "2022.12.11"]
[Round "6.1"]
[White "Salzano Masini, Andre Carlos"]
[Black "Bizzoco, Vito"]
[Result "1-0"]
[ECO "B48"]
[WhiteElo "1694"]
[BlackElo "1856"]
[Annotator "NA RC COMBH"]
[PlyCount "93"]
[EventDate "2022.12.08"]
[EventType "swiss"]
[EventCountry "ITA"]
[SourceTitle "playchess.com"]
[Source "ChessBase"]
[SourceQuality "1"]
[TimeControl "5400+30"]

1. e4 {[%emt 0:00:04]} c5 {[%emt 1:31:00]} 2. Nf3 {[%emt 0:01:01]} e6 {[%emt 0:00:00]} 3. d4 {[%emt 0:00:10]} cxd4 {[%emt 0:00:00]} 4. Nxd4 {[%emt 0:00:04]} Nc6 {[%emt 0:00:00]} 5. Nc3 {[%emt 0:00:07]} Qc7 {[%emt 0:00:00]} 6. Be3 {[%emt 0:01:10]} a6 {[%emt 0:00:00]} 7. Qd2 {[%emt 0:02:55]} Nf6 {[%emt 0:00:00]} 8. f3 {[%emt 0:17:17]} Bb4 {[%emt 0:00:00]} 9. a3 {[%emt 0:13:41]} Be7 {[%emt 0:00:00]} 10. g4 {[%emt 0:03:34]} d6 {[%emt 0:00:00]} 11. h4 {[%emt 0:00:51]} Ne5 {[%emt 0:00:00]} 12. O-O-O {[%emt 0:02:33]} Nc4 {[%emt 0:00:00]} 13. Bxc4 {[%emt 0:00:08]} Qxc4 {[%emt 0:00:00]} 14. g5 {[%emt 0:03:08]} Nh5 {[%emt 0:00:00]} 15. f4 {[%emt 0:03:50]} g6 {[%emt 0:00:00]} 16. f5 {[%emt 0:09:13]} e5 {[%emt 0:00:00]} 17. fxg6 {[%emt 0:05:45]} hxg6 {[%emt 0:00:00]} 18. b3 {[%emt 0:02:04]} Qc5 {[%emt 0:00:00]} 19. Ndb5 {[%emt 0:05:37]} Qc6 {[%emt 0:00:00]} 20. Nxd6+ {[%emt 0:00:27]} Bxd6 {[%emt 0:00:00]} 21. Qxd6 {[%emt 0:00:05]} Qxd6 {[%emt 0:00:00]} 22. Rxd6 {[%emt 0:00:44]} Be6 {[%emt 0:00:00]} 23. Rb6 {[%emt 0:02:26]} Rc8 {[%emt 0:00:00]} 24. Kb2 {[%emt 0:00:19]} Ng3 {[%emt 0:00:00]} 25. Rg1 {[%emt 0:02:52]} Rxc3 {[%emt 0:00:00]} 26. Kxc3 {[%emt 0:00:02]} Ne2+ {[%emt 0:00:00]} 27. Kd3 {[%emt 0:00:17]} Nxg1 {[%emt 0:00:00]} 28. Bxg1 {[%emt 0:00:11]} Bc8 {[%emt 0:00:00]} 29. Bf2 {[%emt 0:00:23]} Kd8 {[%emt 0:00:00]} 30. Kc4 {[%emt 0:01:01]} Kc7 {[%emt 0:00:00]} 31. Kc5 {[%emt 0:00:52]} Rd8 {[%emt 0:00:00]} 32. Bg3 {[%emt 0:00:48]} Rd2 {[%emt 0:00:00]} 33. Bxe5+ {[%emt 0:01:22]} Kd8 {[%emt 0:00:00]} 34. c4 {[%emt 0:02:02]} Kd7 {[%emt 0:00:00]} 35. Rf6 {[%emt 0:01:47]} Ke8 {[%emt 0:00:00]} 36. Kb6 {[%emt 0:01:47]} Rd3 {[%emt 0:00:00]} 37. Kc7 {[%emt 0:06:01]} Bg4 {[%emt 0:00:00]} 38. Rd6 {[%emt 0:02:09]} Rxd6 {[%emt 0:00:00]} 39. Bxd6 {[%emt 0:01:19]} Bf3 {[%emt 0:00:00]} 40. Kxb7 {[%emt 0:00:25]} a5 {[%emt 0:00:00]} 41. c5 {[%emt 0:00:19]} Kd7 {[%emt 0:00:00]} 42. Kb6 {[%emt 0:01:27]} a4 {[%emt 0:00:15]} 43. b4 {[%emt 0:00:11]} Bxe4 {[%emt 0:00:17]} 44. b5 {[%emt 0:00:45]} Kc8 {[%emt 0:01:49]} 45. c6 {[%emt 0:00:22]} Bf3 {[%emt 0:01:20]} 46. Kc5 {[%emt 0:00:13]} Be4 {[%emt 0:01:55]} 47. b6 {[%emt 0:00:24]} 1-0

[Event "11th Festival Palmanova-B 2022"]
[Site "Strassoldo"]
[Date "2022.12.11"]
[Round "6.2"]
[White "Gasperi, Fosco"]
[Black "Pin, Orlando"]
[Result "1-0"]
[ECO "D35"]
[WhiteElo "1725"]
[BlackElo "1630"]
[Annotator "NA RC COMBH"]
[PlyCount "43"]
[EventDate "2022.12.08"]
[EventType "swiss"]
[EventCountry "ITA"]
[SourceTitle "playchess.com"]
[Source "ChessBase"]
[SourceQuality "1"]
[TimeControl "5400+30"]

1. d4 {[%emt 0:00:06]} d5 {[%emt 0:00:05]} 2. c4 {[%emt 0:00:19]} e6 {[%emt 0:00:04]} 3. Nc3 {[%emt 0:00:12]} Nf6 {[%emt 0:00:24]} 4. cxd5 {[%emt 0:00:23]} exd5 {[%emt 0:00:06]} 5. Bg5 {[%emt 0:00:16]} Be7 {[%emt 0:00:13]} 6. e3 {[%emt 0:00:25]} Bf5 {[%emt 0:00:25]} 7. Bxf6 {[%emt 0:01:40]} Bxf6 {[%emt 0:01:03]} 8. Qb3 {[%emt 0:00:16]} Nd7 {[%emt 0:12:39]} 9. Qxd5 {[%emt 0:06:39]} Bg6 {[%emt 0:09:01]} 10. Nf3 {[%emt 0:01:58]} O-O {[%emt 0:01:52]} 11. Be2 {[%emt 0:00:20]} c6 {[%emt 0:01:02]} 12. Qb3 {[%emt 0:00:39]} Nb6 {[%emt 0:01:25]} 13. O-O {[%emt 0:00:28]} Re8 {[%emt 0:01:22]} 14. Rac1 {[%emt 0:05:20]} Rc8 {[%emt 0:02:40]} 15. Rfd1 {[%emt 0:01:30]} Qe7 {[%emt 0:01:56]} 16. h3 {[%emt 0:11:10]} Red8 {[%emt 0:00:50]} 17. Nh2 {[%emt 0:01:06]} Nd5 {[%emt 0:07:38]} 18. Nxd5 {[%emt 0:01:41]} cxd5 {[%emt 0:01:31]} 19. Bg4 {[%emt 0:03:24]} Rc7 {[%emt 0:01:48]} 20. Rc3 {[%emt 0:01:00]} h5 {[%emt 0:01:08]} 21. Bf3 {[%emt 0:00:34]} Rdc8 {[%emt 0:01:52]} 22. Bxd5 {[%emt 0:03:22]} 1-0